fUSD/lending_fUSD_20250905
["ID","MTS","AMOUNT","RATE_DAILY","PERIOD"]
[383635087,1757051468243,-400.0,0.00025479,2]
[383635088,1757051468253,-400.0,0.00025479,2]
[383635089,1757051468262,-400.0,0.00025479,2]
[383635090,1757051468272,-539.96314555,0.00025479,2]
[383635091,1757051468282,-400.0,0.00025479,2]
[383635092,1757051468292,-400.0,0.00025479,2]
[383635093,1757051468302,-197.75319164,0.00025479,2]
[383635094,1757051468311,-400.0,0.00025479,2]
[383635095,1757051468320,-400.0,0.00025479,2]
[383635096,1757051468332,-400.0,0.00025479,2]
[383635097,1757051468342,-400.0,0.00025479,2]
[383635098,1757051468352,-347.60690808,0.00025479,2]
[383635099,1757051468362,-279.49278786,0.00025479,2]
[383635100,1757051468371,-400.0,0.00025479,2]
[383635101,1757051468381,-400.0,0.00025479,2]
[383635102,1757051468391,-208.84338288,0.00025479,2]
[383635103,1757051468403,-400.0,0.00025479,2]
[383635104,1757051468414,-412.24023652,0.00025479,2]
[383635105,1757051468423,-400.0,0.00025479,2]
[383635106,1757051468433,-400.0,0.00025479,2]
[383635107,1757051468444,-400.0,0.00025479,2]
[383635108,1757051468454,-400.0,0.00025479,2]
[383635109,1757051468464,-511.19852644,0.00025479,2]
[383635110,1757051468473,-400.0,0.00025479,2]
[383635111,1757051468485,-400.0,0.00025479,2]
[383635112,1757051468495,-830.34,0.00025479,2]
[383635113,1757051468505,-400.0,0.00025479,2]
[383635114,1757051468514,-400.0,0.00025479,2]
[383635115,1757051468525,-400.0,0.00025479,2]
[383635116,1757051468534,-400.0,0.00025479,2]
[383635117,1757051468544,-400.0,0.00025479,2]
[383635118,1757051468553,-400.0,0.00025479,2]
[383635119,1757051468563,-400.0,0.00025479,2]
[383635120,1757051468573,-400.0,0.00025479,2]
[383635121,1757051468583,-400.0,0.00025479,2]
[383635122,1757051468592,-400.0,0.00025479,2]
[383635123,1757051468601,-400.0,0.00025479,2]
[383635124,1757051468611,-400.0,0.00025479,2]
[383635125,1757051468620,-2519.45,0.00025479,2]
[383635126,1757051468629,-306.05894183,0.00025479,2]
[383635127,1757051468639,-400.0,0.00025479,2]
[383635128,1757051468648,-400.0,0.00025479,2]
[383635129,1757051468658,-400.0,0.00025479,2]
[383635130,1757051468667,-489.65,0.00025479,2]
[383635131,1757051468676,-429.3341244,0.00025479,2]
[383635132,1757051468685,-400.0,0.00025479,2]
[383635133,1757051468694,-1215.25,0.00025479,2]
[383635134,1757051468704,-432.48568119,0.00025479,2]
[383635135,1757051468713,-400.0,0.00025479,2]
[383635136,1757051468722,-379.75290611,0.00025479,2]
[383635137,1757051468732,-400.0,0.00025479,2]
[383635138,1757051468742,-400.0,0.00025479,2]
[383635139,1757051468752,-728.24,0.00025479,2]
[383635140,1757051468762,-400.0,0.00025479,2]
[383635141,1757051468773,-400.0,0.00025479,2]
[383635142,1757051468783,-400.0,0.00025479,2]
[383635143,1757051468793,-400.0,0.00025479,2]
[383635144,1757051468803,-400.0,0.00025479,2]
[383635145,1757051468813,-400.0,0.00025479,2]
[383635146,1757051468823,-400.0,0.00025479,2]
[383635147,1757051468833,-400.0,0.00025479,2]
[383635148,1757051468843,-440.35982123,0.00025479,2]
[383635149,1757051468853,-400.0,0.00025479,2]
[383635150,1757051468863,-400.0,0.00025479,2]
[383635151,1757051468873,-400.0,0.00025479,2]
[383635152,1757051468884,-400.0,0.00025479,2]
[383635153,1757051468895,-400.0,0.00025479,2]
[383635154,1757051468905,-370.652006,0.00025479,2]
[383635155,1757051468914,-400.0,0.00025479,2]
[383635156,1757051468925,-400.0,0.00025479,2]
[383635157,1757051468935,-327.14158222,0.00025479,2]
[383635158,1757051468945,-400.0,0.00025479,2]
[383635159,1757051468954,-400.0,0.00025479,2]
[383635160,1757051468964,-400.0,0.00025479,2]
[383635161,1757051468974,-400.0,0.00025479,2]
[383635162,1757051468983,-400.0,0.00025479,2]
[383635163,1757051468993,-513.28063304,0.00025479,2]
[383635164,1757051469002,-400.0,0.00025479,2]
[383635165,1757051469012,-400.0,0.00025479,2]
[383635166,1757051469022,-400.0,0.00025479,2]
[383635167,1757051469033,-400.0,0.00025479,2]
[383635168,1757051469043,-400.0,0.00025479,2]
[383635169,1757051469052,-400.0,0.00025479,2]
[383635170,1757051469062,-323.92818328,0.00025479,2]
[383635171,1757051469072,-400.0,0.00025479,2]
[383635172,1757051469081,-490.55644642,0.00025479,2]
[383635173,1757051469091,-400.0,0.00025479,2]
[383635174,1757051469100,-400.0,0.00025479,2]
[383635175,1757051469110,-400.0,0.00025479,2]
[383635176,1757051469119,-400.0,0.00025479,2]
[383635177,1757051469129,-414.555818,0.00025479,2]
[383635178,1757051469138,-209.25546976,0.00025479,2]
[383635179,1757051469148,-400.0,0.00025479,2]
[383635180,1757051469158,-400.0,0.00025479,2]
[383635181,1757051469168,-291.21,0.00025479,2]
[383635182,1757051469177,-400.0,0.00025479,2]
[383635183,1757051469187,-533.05,0.00025479,2]
[383635184,1757051469198,-544.4108642,0.00025479,2]
[383635185,1757051469208,-400.0,0.00025479,2]
[383635186,1757051469219,-400.0,0.00025479,2]
[383635187,1757051469229,-400.0,0.00025479,2]
[383635188,1757051469240,-400.0,0.00025479,2]
[383635189,1757051469250,-400.0,0.00025479,2]
[383635190,1757051469259,-400.0,0.00025479,2]
[383635191,1757051469270,-400.0,0.00025479,2]
[383635192,1757051469281,-400.0,0.00025479,2]
[383635193,1757051469292,-400.0,0.00025479,2]
[383635194,1757051469303,-400.0,0.00025479,2]
[383635195,1757051469313,-400.0,0.00025479,2]
[383635196,1757051469329,-400.0,0.00025479,2]
[383635197,1757051469339,-1094.46,0.00025479,2]
[383635198,1757051469353,-400.0,0.00025479,2]
[383635199,1757051469363,-400.0,0.00025479,2]
[383635200,1757051469373,-400.0,0.00025479,2]
[383635201,1757051469382,-400.0,0.00025479,2]
[383635202,1757051469392,-400.0,0.00025479,2]
[383635203,1757051469406,-458.47,0.00025479,2]
[383635204,1757051469416,-446.90220124,0.00025479,2]
[383635205,1757051469425,-423.98,0.00025479,2]
[383635206,1757051469434,-400.0,0.00025479,2]
[383635207,1757051469443,-400.0,0.00025479,2]
[383635208,1757051469453,-400.0,0.00025479,2]
[383635209,1757051469463,-400.0,0.00025479,2]
[383635210,1757051469472,-400.0,0.00025479,2]
[383635211,1757051469482,-400.0,0.00025479,2]
[383635212,1757051469492,-400.0,0.00025479,2]
[383635213,1757051469501,-400.0,0.00025479,2]
[383635214,1757051469512,-400.0,0.00025479,2]
[383635215,1757051469528,-635.0,0.00025479,2]
[383635216,1757051469538,-539.6130759,0.00025479,2]
[383635217,1757051469548,-205.21823038,0.00025479,2]
[383635218,1757051469559,-400.0,0.00025479,2]
[383635219,1757051469568,-400.0,0.00025479,2]
[383635220,1757051469578,-400.0,0.00025479,2]
[383635221,1757051469588,-400.0,0.00025479,2]
[383635222,1757051469599,-400.0,0.00025479,2]
[383635223,1757051469608,-400.0,0.00025479,2]
[383635224,1757051469618,-420.59990316,0.00025479,2]
[383635225,1757051469628,-400.0,0.00025479,2]
[383635226,1757051469639,-408.51955945,0.00025479,2]
[383635227,1757051469648,-400.0,0.00025479,2]
[383635228,1757051469658,-400.0,0.00025479,2]
[383635229,1757051469667,-400.0,0.00025479,2]
[383635230,1757051469676,-336.94454457,0.00025479,2]
[383635231,1757051469685,-150.20806468,0.00025479,2]
[383635232,1757051469695,-400.0,0.00025479,2]
[383635233,1757051469704,-521.06129832,0.00025479,2]
[383635234,1757051469714,-400.0,0.00025479,2]
[383635235,1757051469724,-400.0,0.00025479,2]
[383635236,1757051469733,-400.0,0.00025479,2]
[383635237,1757051469742,-400.0,0.00025479,2]
[383635238,1757051469753,-400.0,0.00025479,2]
[383635239,1757051469762,-400.0,0.00025479,2]
[383635240,1757051469772,-400.0,0.00025479,2]
[383635241,1757051469782,-400.0,0.00025479,2]
[383635242,1757051469792,-400.0,0.00025479,2]
[383635243,1757051469802,-288.55,0.00025479,2]
[383635244,1757051469812,-531.46,0.00025479,2]
[383635245,1757051469821,-747.32,0.00025479,2]
[383635246,1757051469831,-169.25975893,0.00025479,2]
[383635247,1757051469841,-400.0,0.00025479,2]
[383635248,1757051469851,-400.0,0.00025479,2]
[383635249,1757051469860,-400.0,0.00025479,2]
[383635250,1757051469870,-400.0,0.00025479,2]
[383635251,1757051469879,-2971.25,0.00025479,2]
[383635252,1757051469889,-400.0,0.00025479,2]
[383635253,1757051469908,-1141.89,0.00025479,2]
[383635254,1757051469918,-400.0,0.00025479,2]
[383635255,1757051469927,-400.0,0.00025479,2]
[383635256,1757051469937,-448.1432929,0.00025479,2]
[383635257,1757051469947,-400.0,0.00025479,2]
[383635258,1757051469957,-400.0,0.00025479,2]
[383635259,1757051469967,-400.0,0.00025479,2]
[383635260,1757051469976,-521.91538669,0.00025479,2]
[383635261,1757051469986,-400.0,0.00025479,2]
[383635262,1757051469996,-400.0,0.00025479,2]
[383635263,1757051470007,-408.56230737,0.00025479,2]
[383635264,1757051470017,-449.88619955,0.00025479,2]
[383635265,1757051470028,-400.0,0.00025479,2]
[383635266,1757051470038,-460.5,0.00025479,2]
[383635267,1757051470048,-222.21766403,0.00025479,2]
[383635268,1757051470058,-400.0,0.00025479,2]
[383635269,1757051470067,-400.0,0.00025479,2]
[383635270,1757051470076,-400.0,0.00025479,2]
[383635271,1757051470086,-400.0,0.00025479,2]
[383635272,1757051470096,-400.0,0.00025479,2]
[383635273,1757051470105,-69442.06671401,0.000255,7]
[383635274,1757051470640,-400.0,0.00024657,2]
[383635275,1757051470651,-400.0,0.00024931,2]
[383635276,1757051470660,-519.29531146,0.00025205,2]
[383635277,1757051470670,-344.40320968,0.00025479,2]
[383635278,1757051470831,-55.59679032,0.00025479,2]
[383635279,1757051470840,-4222.00272141,0.000255,7]
[383635280,1757051470852,-580.62353678,0.000255,7]
[383635281,1757051471076,-1175.0,0.00024978,2]
[383635282,1757051471167,-234.45281902,0.000255,7]
[383635283,1757051471374,-1385.2477223,0.00023848,2]
[383635284,1757051471384,-91.21624384,0.000255,7]
[383635285,1757051471840,154.87,0.00013699,2]
[383635286,1757051492131,159.6,0.00019834,2]
[383635290,1757052049324,213.96,0.00011895,2]
[383635291,1757052049532,213.96,0.00012521,2]
[383635292,1757052049739,213.96,0.00013147,2]
[383635293,1757052049943,213.96,0.00013773,2]
[383635294,1757052050177,213.96,0.00014399,2]
[383635295,1757052050594,213.96,0.00015025,2]
[383635296,1757052050797,213.96,0.00015651,2]
[383635297,1757052051001,213.96,0.00016277,2]
[383635298,1757052051201,213.96,0.00016904,2]
[383635299,1757052051403,213.96,0.0001753,2]
[383635300,1757052051813,213.96,0.00018156,2]
[383635301,1757052052093,213.96,0.00018782,2]
[383635302,1757052052296,213.96,0.00019408,2]
[383635303,1757052244520,701.0383354,0.0003013,120]
[383635304,1757052384457,154.77,0.00013699,2]
[383635307,1757052632305,-213.96,0.00020034,2]
[383635308,1757052632315,-213.96,0.0002066,2]
[383635309,1757052632325,-213.96,0.00021286,2]
[383635310,1757052632335,-204.28,0.0002179,2]
[383635311,1757052632344,-137.12832148,0.00021912,2]
[383635312,1757052632356,-76.83167852,0.00021912,2]
[383635313,1757052632365,-211.03027608,0.00021999,2]
[383635314,1757052632378,-39.50648702,0.00021999,2]
[383635315,1757052632387,-213.96,0.00022538,2]
[383635316,1757052632397,-203.10656648,0.00023024,2]
[383635317,1757052632406,-1200.0,0.00023025,2]
[383635318,1757052632416,-300.0,0.00023025,2]
[383635319,1757052632425,-300.0,0.00023025,2]
[383635320,1757052632435,-1200.0,0.00023025,2]
[383635321,1757052632445,-500.0,0.00023026,2]
[383635322,1757052632454,-500.0,0.00023026,2]
[383635323,1757052632468,-3362.4530376,0.00023027,2]
[383635324,1757052632478,-3098.6771119,0.0002315,2]
[383635325,1757052632488,-213.96,0.00023164,2]
[383635326,1757052632497,-165.8,0.00023309,2]
[383635327,1757052632507,-609.97,0.0002331,2]
[383635328,1757052632517,-220.0,0.000236,2]
[383635329,1757052632526,-257.91778498,0.00023759,2]
[383635330,1757052632535,-194.72792766,0.00023759,2]
[383635331,1757052632545,-213.96,0.0002379,2]
[383635332,1757052632555,-160.0,0.00023833,7]
[383635333,1757052632565,-416.31,0.00023839,2]
[383635334,1757052632574,-154.77,0.00023973,2]
[383635335,1757052632583,-205.66,0.00024093,2]
[383635336,1757052632593,-250.0,0.00024097,2]
[383635337,1757052632602,-201.93286099,0.00024307,2]
[383635338,1757052632612,-1396.08983839,0.00024602,2]
[383635340,1757052632623,-2181.280998,0.00024602,2]
[383635342,1757052632638,-585.62916361,0.00024602,2]
[383635344,1757052632648,-896.0,0.00024602,2]
[383635346,1757052632658,-1032.98884645,0.00024656,2]
[383635348,1757052632668,-500.0,0.00024656,2]
[383635349,1757052632678,-500.0,0.00024656,2]
[383635350,1757052632687,-401.96436413,0.00024657,2]
[383635352,1757052632697,-400.0,0.00024657,2]
[383635353,1757052632707,-400.0,0.00024657,2]
[383635355,1757052632716,-400.0,0.00024657,2]
[383635356,1757052632726,-400.0,0.00024657,2]
[383635357,1757052632736,-96.68872606,0.00024657,2]
[383635358,1757052632748,-303.31127394,0.00024657,2]
[383635359,1757052632758,-402.23831303,0.00024657,2]
[383635360,1757052632767,-406.24815431,0.00024657,2]
[383635362,1757052632781,-402.34446596,0.00024657,2]
[383635364,1757052632790,-401.95302942,0.00024657,2]
[383635366,1757052632800,-400.0,0.00024657,2]
[383635368,1757052632809,-400.0,0.00024657,2]
[383635370,1757052632822,-400.0,0.00024657,2]
[383635372,1757052632831,-400.0,0.00024657,2]
[383635374,1757052632840,-400.0,0.00024657,2]
[383635376,1757052632849,-400.0,0.00024657,2]
[383635378,1757052632859,-259.74077198,0.00024657,2]
[383635380,1757052632871,-39.3734672,0.00024657,2]
[383635382,1757052632880,-400.0,0.00024657,2]
[383635384,1757052632890,-400.0,0.00024657,2]
[383635386,1757052632899,-400.0,0.00024657,2]
[383635388,1757052632908,-283.60115866,0.00024657,2]
[383635390,1757052632917,-400.0,0.00024657,2]
[383635392,1757052632926,-400.0,0.00024657,2]
[383635394,1757052632935,-400.0,0.00024657,2]
[383635396,1757052632944,-400.0,0.00024657,2]
[383635398,1757052632954,-400.0,0.00024657,2]
[383635400,1757052632963,-400.0,0.00024657,2]
[383635402,1757052632975,-400.0,0.00024657,2]
[383635404,1757052632986,-412.43593733,0.00024657,2]
[383635406,1757052632995,-400.0,0.00024657,2]
[383635408,1757052633004,-237.85644331,0.00024657,2]
[383635410,1757052633016,-162.14355669,0.00024657,2]
[383635412,1757052633026,-495.83043243,0.00024657,2]
[383635414,1757052633036,-400.0,0.00024657,2]
[383635415,1757052633045,-400.0,0.00024657,2]
[383635416,1757052633055,-400.0,0.00024657,2]
[383635417,1757052633064,-400.0,0.00024657,2]
[383635418,1757052633074,-400.0,0.00024657,2]
[383635419,1757052633084,-170.27974415,0.00024657,2]
[383635420,1757052633100,-73.10686093,0.00024657,2]
[383635421,1757052633110,-484.97977233,0.00024657,2]
[383635422,1757052633120,-330.4573027,0.00024657,2]
[383635423,1757052633135,-413.53436047,0.00023367,3]
[383635424,1757052633147,-252.46563953,0.00023367,3]
[383635425,1757052633156,-201.68338824,0.00024657,2]
[383635426,1757052633166,-400.0,0.00024657,2]
[383635427,1757052633175,-158.14185578,0.00024657,2]
[383635428,1757052633185,-370.17820871,0.00024657,2]
[383635429,1757052633197,-29.82179129,0.00024657,2]
[383635430,1757052633207,-354.88718412,0.00024657,2]
[383635431,1757052633216,-81.13310633,0.00024657,2]
[383635432,1757052633228,-318.86689367,0.00024657,2]
[383635433,1757052633238,-69.03371909,0.00024657,2]
[383635434,1757052633250,-330.96628091,0.00024657,2]
[383635435,1757052633260,-282.98045659,0.00024657,2]
[383635436,1757052633269,-400.0,0.00024657,2]
[383635437,1757052633279,-400.0,0.00024657,2]
[383635438,1757052633288,-94.45806253,0.00024657,2]
[383635439,1757052633308,-252.21347314,0.00024657,2]
[383635440,1757052633318,-217.38185337,0.00024657,2]
[383635445,1757052638237,-182.61814663,0.00024657,2]
[383635446,1757052638247,-400.0,0.00024657,2]
[383635447,1757052638257,-400.0,0.00024657,2]
[383635448,1757052638266,-400.0,0.00024657,2]
[383635449,1757052638276,-400.0,0.00024657,2]
[383635450,1757052638285,-400.0,0.00024657,2]
[383635451,1757052638295,-400.0,0.00024657,2]
[383635452,1757052638305,-214.75491566,0.00024657,2]
[383635453,1757052638314,-400.0,0.00024657,2]
[383635454,1757052638324,-400.0,0.00024657,2]
[383635455,1757052638333,-400.0,0.00024657,2]
[383635456,1757052638342,-400.0,0.00024657,2]
[383635457,1757052638352,-279.49278786,0.00024657,2]
[383635458,1757052638361,-400.0,0.00024657,2]
[383635459,1757052638371,-412.24023652,0.00024657,2]
[383635460,1757052638565,-475.87162426,0.00024657,2]
[383635461,1757052638576,-400.0,0.00024657,2]
[383635462,1757052638586,-400.0,0.00024657,2]
[383635463,1757052638595,-400.0,0.00024657,2]
[383635464,1757052638605,-400.0,0.00024657,2]
[383635465,1757052638614,-400.0,0.00024657,2]
[383635466,1757052638624,-400.0,0.00024657,2]
[383635467,1757052638633,-28.02228907,0.00024657,2]
[383635468,1757052638645,-371.97771093,0.00024657,2]
[383635469,1757052638655,-400.0,0.00024657,2]
[383635470,1757052638664,-400.0,0.00024657,2]
[383635471,1757052638673,-408.139435,0.00024657,2]
[383635472,1757052638683,-379.75290611,0.00024657,2]
[383635473,1757052638692,-400.0,0.00024657,2]
[383635474,1757052638701,-328.30256363,0.00024657,2]
[383635475,1757052638711,-400.0,0.00024657,2]
[383635476,1757052638720,-400.0,0.00024657,2]
[383635477,1757052638729,-400.0,0.00024657,2]
[383635478,1757052638738,-400.0,0.00024657,2]
[383635480,1757052638748,-400.0,0.00024657,2]
[383635482,1757052638757,-400.0,0.00024657,2]
[383635484,1757052638766,-144.14881789,0.00024657,2]
[383635486,1757052638780,-255.85118211,0.00024657,2]
[383635488,1757052638789,-400.0,0.00024657,2]
[383635490,1757052638799,-315.01127396,0.00024657,2]
[383635492,1757052638813,-84.98872604,0.00024657,2]
[383635494,1757052638824,-308.70224874,0.00024657,2]
[383635496,1757052638835,-91.29775126,0.00024657,2]
[383635499,1757052638845,-471.32,0.00024657,2]
[383635500,1757052638858,-500.0,0.00024657,2]
[383635502,1757052638867,-400.0,0.00024657,2]
[383635505,1757052638877,-1093.21,0.00024657,2]
[383635506,1757052638886,-354.90449707,0.00024735,2]
[383635509,1757052638897,-363.50002513,0.00024735,2]
[383635646,1757052640353,-44.0954778,0.00024735,2]
[383635648,1757052640363,-215.0,0.0002478,2]
[383635650,1757052640373,-96.53622218,0.00024799,2]
[383636298,1757052734469,800.0,0.0003,120]
[383636299,1757052785692,202.0,0.0003,120]
[383636301,1757052988081,160.5,0.00012016,2]
[383636302,1757052988279,160.5,0.0001502,2]
[383636303,1757052988483,160.5,0.00018024,2]
[383636304,1757053009788,1409.03196533,0.00017,3]
[383636307,1757053580617,154.66,0.00013699,2]
[383636316,1757053831557,-981.702606,0.0002089,2]
[383636317,1757053831567,-99.91854188,0.00020995,2]
[383636318,1757053831579,-200.08145812,0.00020995,2]
[383636319,1757053831589,-1200.0,0.00020995,2]
[383636320,1757053831599,-300.0,0.00020995,2]
[383636321,1757053831609,-1100.0,0.00020995,2]
[383636322,1757053831618,-500.0,0.00020996,2]
[383636323,1757053831627,-160.04155664,0.00020996,2]
[383636324,1757053831638,-500.0,0.00020996,2]
[383636325,1757053831647,-500.0,0.00020996,2]
[383636326,1757053831658,-460.27502462,0.00020996,2]
[383636327,1757053831668,-500.0,0.00020996,2]
[383636328,1757053831679,-500.0,0.00020996,2]
[383636329,1757053831688,-500.0,0.00020996,2]
[383636330,1757053831699,-500.0,0.00020996,2]
[383636331,1757053831708,-350.0,0.00020996,2]
[383636332,1757053831718,-500.0,0.00020996,2]
[383636333,1757053831727,-500.0,0.00020996,2]
[383636334,1757053831737,-500.0,0.00020996,2]
[383636335,1757053831747,-500.0,0.00020996,2]
[383636336,1757053831756,-500.0,0.00020996,2]
[383636337,1757053831766,-500.0,0.00020996,2]
[383636338,1757053831776,-500.0,0.00020996,2]
[383636339,1757053831785,-500.0,0.00020996,2]
[383636340,1757053831795,-500.0,0.00020996,2]
[383636342,1757053831806,-500.0,0.00020996,2]
[383636343,1757053831816,-500.0,0.00020996,2]
[383636344,1757053831825,-500.0,0.00020996,2]
[383636345,1757053831835,-500.0,0.00020996,2]
[383636346,1757053831844,-500.0,0.00020996,2]
[383636348,1757053831853,-500.0,0.00020996,2]
[383636350,1757053831862,-474.43062658,0.00020996,2]
[383636353,1757053831881,-25.56937342,0.00020996,2]
[383636355,1757053831891,-450.0,0.00020996,2]
[383636357,1757053831903,-500.0,0.00020996,2]
[383636358,1757053831912,-500.0,0.00020996,2]
[383636361,1757053831922,-500.0,0.00020996,2]
[383636365,1757053831931,-500.0,0.00020996,2]
[383636369,1757053831940,-500.0,0.00020996,2]
[383636372,1757053831949,-500.0,0.00020996,2]
[383636374,1757053831959,-500.0,0.00020996,2]
[383636376,1757053831968,-250.0,0.00021013,2]
[383636378,1757053831977,-160.5,0.00021028,2]
[383636380,1757053831987,-150.0,0.000216,2]
[383636382,1757053832002,-232.0,0.0002278,2]
[383636384,1757053832023,-150.0,0.00022882,4]
[383636386,1757053832034,-237.87045182,0.00022882,4]
[383636387,1757053832043,-275.94143982,0.00023029,2]
[383636388,1757053832053,-881.0,0.00023095,2]
[383636389,1757053832062,-250.0,0.00023095,2]
[383636390,1757053832071,-195.0,0.00023095,2]
[383636391,1757053832080,-300.0,0.00023096,2]
[383636392,1757053832090,-250.0,0.00023096,2]
[383636393,1757053832100,-300.0,0.00023096,2]
[383636394,1757053832109,-383.0,0.00023129,2]
[383636395,1757053832119,-676.37,0.0002318,21]
[383636396,1757053832128,-478.77,0.00023467,2]
[383636397,1757053832138,-231.53,0.00023521,2]
[383636398,1757053832148,-500.0,0.00023568,2]
[383636399,1757053832158,-742.22,0.00023568,2]
[383636400,1757053832168,-197.0,0.000236,5]
[383636401,1757053832177,-200.0,0.00023716,2]
[383636402,1757053832187,-3000.0,0.00023817,2]
[383636403,1757053832196,-151.0,0.00023817,2]
[383636404,1757053832205,-257.91778498,0.00023817,2]
[383636405,1757053832215,-780.0,0.0002388,21]
[383636406,1757053832225,-356.15,0.00023896,2]
[383636407,1757053832236,-228.0,0.0002397,2]
[383636408,1757053832246,-154.66,0.00023973,2]
[383636409,1757053832255,-171.69,0.00024019,2]
[383636410,1757053832264,-250.0,0.00024027,2]
[383636411,1757053832275,-160.5,0.00024032,2]
[383636412,1757053832285,-792.42502705,0.00024251,2]
[383636413,1757053832295,-168.0,0.00024501,2]
[383636414,1757053832306,-792.42502706,0.00024529,2]
[383636415,1757053832315,-168.0,0.00024539,2]
[383636416,1757053832324,-1188.6587,0.0002455,2]
[383636417,1757053832334,-800.0,0.000246,20]
[383636418,1757053832343,-168.0,0.00024637,2]
[383636419,1757053832353,-478.77,0.0002464,2]
[383636420,1757053832363,-1555.65,0.00024658,2]
[383636421,1757053832372,-917.6713639,0.00024663,2]
[383636422,1757053832382,-19816.5625504,0.00024663,2]
[383636423,1757053832391,-54261.41400697,0.00024685,3]
[383636424,1757053832402,-201.93406588,0.00024685,2]
[383636425,1757053832411,-322.6107,0.00024685,2]
[383636426,1757053832421,-151.0,0.00024685,2]
[383636427,1757053832430,-151.0,0.00024685,2]
[383636428,1757053832439,-695.39793187,0.00024685,2]
[383636429,1757053832448,-188.03444898,0.00024685,2]
[383636430,1757053832458,-151.0,0.00024685,2]
[383636431,1757053832467,-160.0,0.00024685,2]
[383636432,1757053832476,-202.38964737,0.00024685,2]
[383636433,1757053832485,-151.0,0.00024685,2]
[383636434,1757053832495,-151.0,0.00024685,2]
[383636435,1757053832504,-151.0,0.00024685,2]
[383636436,1757053832513,-200.0,0.00024685,2]
[383636437,1757053832522,-151.0,0.00024685,2]
[383636438,1757053832532,-151.0,0.00024685,2]
[383636439,1757053832542,-151.0,0.00024685,2]
[383636440,1757053832553,-151.0,0.00024685,2]
[383636441,1757053832562,-151.0,0.00024685,2]
[383636442,1757053832571,-152.86844733,0.00024685,2]
[383636443,1757053832581,-151.0,0.00024685,2]
[383636444,1757053832590,-151.0,0.00024685,2]
[383636445,1757053832599,-151.0,0.00024685,2]
[383636446,1757053832609,-151.0,0.00024685,2]
[383636447,1757053832618,-3355.69755467,0.00024685,2]
[383636448,1757053832627,-151.0,0.00024685,2]
[383636449,1757053832636,-151.0,0.00024685,2]
[383636450,1757053832646,-194.72792766,0.00024685,2]
[383636451,1757053832655,-250.0,0.00024685,2]
[383636452,1757053832664,-151.0,0.00024685,2]
[383636453,1757053832674,-250.0,0.00024685,2]
[383636454,1757053832684,-151.0,0.00024685,2]
[383636455,1757053832693,-500.0,0.00024685,2]
[383636456,1757053832703,-250.0,0.00024685,2]
[383636457,1757053832712,-500.0,0.00024685,2]
[383636458,1757053832722,-151.0,0.00024685,2]
[383636459,1757053832731,-216.73784516,0.00024685,2]
[383636460,1757053832740,-500.0,0.00024685,2]
[383636461,1757053832750,-151.0,0.00024685,2]
[383636462,1757053832759,-500.0,0.00024685,2]
[383636463,1757053832768,-151.0,0.00024685,2]
[383636464,1757053832777,-500.0,0.00024685,2]
[383636465,1757053832787,-151.0,0.00024685,2]